[Event "*** SCC Grand Prix: Titled Tuesday Blitz"]
[Site "Chess.com"]
[Date "2020.08.11"]
[Round "5"]
[White "1stSecond"]
[Black "deribas12345"]
[Result "0-1"]
[WhiteElo "2763"]
[BlackElo "2615"]
[TimeControl "180+1"]
[EndTime "10:56:01 PDT"]
[Termination "deribas12345 won on time"]

1. Nf3 {[%clk 0:03:00.9]} 1... c5 {[%clk 0:02:52.9]} 2. e3 {[%clk 0:02:59.3]}
2... g6 {[%clk 0:02:42.8]} 3. d4 {[%clk 0:02:59.7]} 3... Bg7 {[%clk 0:02:43.2]}
4. c4 {[%clk 0:02:57.7]} 4... Nf6 {[%clk 0:02:40.6]} 5. dxc5 {[%clk 0:02:55.4]}
5... Na6 {[%clk 0:02:39.6]} 6. a3 {[%clk 0:02:48.2]} 6... Nxc5 {[%clk
0:02:38.8]} 7. Nc3 {[%clk 0:02:39.8]} 7... a5 {[%clk 0:02:35.8]} 8. Be2 {[%clk
0:02:30.9]} 8... O-O {[%clk 0:02:30.6]} 9. O-O {[%clk 0:02:28.2]} 9... d6 {[%clk
0:02:30.7]} 10. Nd4 {[%clk 0:02:27.1]} 10... Nfe4 {[%clk 0:02:28.8]} 11. Nxe4
{[%clk 0:02:25.1]} 11... Nxe4 {[%clk 0:02:28]} 12. Bf3 {[%clk 0:02:25]} 12...
Nc5 {[%clk 0:02:26.9]} 13. b3 {[%clk 0:02:20.4]} 13... a4 {[%clk 0:02:18.8]} 14.
b4 {[%clk 0:02:20.2]} 14... Bxd4 {[%clk 0:02:12.3]} 15. exd4 {[%clk 0:02:14.2]}
15... Nb3 {[%clk 0:02:12.3]} 16. Bh6 {[%clk 0:02:05]} 16... Nxa1 {[%clk
0:02:06.1]} 17. Bxf8 {[%clk 0:02:05]} 17... Qxf8 {[%clk 0:02:04.4]} 18. Qxa1
{[%clk 0:02:05]} 18... Ra7 {[%clk 0:01:47.2]} 19. c5 {[%clk 0:01:57.2]} 19...
Qg7 {[%clk 0:01:42.3]} 20. Re1 {[%clk 0:01:45.5]} 20... Qf6 {[%clk 0:01:39.5]}
21. Qc3 {[%clk 0:01:38.4]} 21... Be6 {[%clk 0:01:30.1]} 22. Qd2 {[%clk
0:01:31.9]} 22... Bb3 {[%clk 0:01:15.8]} 23. Qe3 {[%clk 0:01:23.9]} 23... dxc5
{[%clk 0:01:08.6]} 24. dxc5 {[%clk 0:01:21.3]} 24... Ra6 {[%clk 0:00:23.3]} 25.
Qxe7 {[%clk 0:01:07.3]} 25... Qc3 {[%clk 0:00:23.1]} 26. Qe8+ {[%clk 0:01:03.3]}
26... Kg7 {[%clk 0:00:22.8]} 27. Qe5+ {[%clk 0:01:03.7]} 27... Qxe5 {[%clk
0:00:23]} 28. Rxe5 {[%clk 0:01:04.6]} 28... b5 {[%clk 0:00:17.4]} 29. Re7 {[%clk
0:00:56.4]} 29... Kf6 {[%clk 0:00:14.2]} 30. Rb7 {[%clk 0:00:50.6]} 30... Re6
{[%clk 0:00:13.1]} 31. Rb6 {[%clk 0:00:20.7]} 31... Ke5 {[%clk 0:00:12]} 32.
Rxe6+ {[%clk 0:00:20.6]} 32... Bxe6 {[%clk 0:00:11.9]} 33. Bc6 {[%clk
0:00:18.1]} 33... Bc4 {[%clk 0:00:10.2]} 34. Be8 {[%clk 0:00:15.4]} 34... Kd4
{[%clk 0:00:05.2]} 35. c6 {[%clk 0:00:12.2]} 35... Be6 {[%clk 0:00:04.2]} 36. c7
{[%clk 0:00:10]} 36... Kc3 {[%clk 0:00:02.9]} 37. Bxf7 {[%clk 0:00:04.3]} 37...
Bc8 {[%clk 0:00:01.8]} 38. Be8 {[%clk 0:00:03.9]} 38... Kb2 {[%clk 0:00:02.5]}
39. Bxb5 {[%clk 0:00:03.1]} 39... Kxa3 {[%clk 0:00:03.1]} 40. Bxa4 {[%clk
0:00:01.3]} 40... Kxa4 {[%clk 0:00:03.3]} 0-1

[Event "*** SCC Grand Prix: Titled Tuesday Blitz"]
[Site "Chess.com"]
[Date "2020.08.11"]
[Round "5"]
[White "vova-79"]
[Black "Jumbo"]
[Result "0-1"]
[WhiteElo "2453"]
[BlackElo "2862"]
[TimeControl "180+1"]
[EndTime "10:56:01 PDT"]
[Termination "Jumbo won on time"]

1. d4 {[%clk 0:03:00.9]} 1... Nf6 {[%clk 0:02:57.4]} 2. c4 {[%clk 0:03:00.5]}
2... e6 {[%clk 0:02:55.5]} 3. Nc3 {[%clk 0:02:59.8]} 3... Bb4 {[%clk 0:02:55.9]}
4. e3 {[%clk 0:02:59.5]} 4... b6 {[%clk 0:02:56.1]} 5. Ne2 {[%clk 0:02:57.7]}
5... c5 {[%clk 0:02:54.3]} 6. a3 {[%clk 0:02:57.8]} 6... Ba5 {[%clk 0:02:54.8]}
7. Rb1 {[%clk 0:02:57]} 7... Na6 {[%clk 0:02:55]} 8. g3 {[%clk 0:02:56.8]} 8...
Bb7 {[%clk 0:02:54.8]} 9. d5 {[%clk 0:02:56.7]} 9... exd5 {[%clk 0:02:48]} 10.
Bg2 {[%clk 0:02:55.2]} 10... Bxc3+ {[%clk 0:02:13.5]} 11. Nxc3 {[%clk
0:02:51.9]} 11... Nc7 {[%clk 0:02:14]} 12. cxd5 {[%clk 0:02:36.6]} 12... Ba6
{[%clk 0:02:09.8]} 13. b4 {[%clk 0:02:26.5]} 13... cxb4 {[%clk 0:02:08.1]} 14.
axb4 {[%clk 0:02:26]} 14... Nb5 {[%clk 0:02:08.6]} 15. Na4 {[%clk 0:01:52.1]}
15... Nd6 {[%clk 0:02:03.1]} 16. f3 {[%clk 0:01:50.7]} 16... O-O {[%clk
0:01:59.1]} 17. Kf2 {[%clk 0:01:50.5]} 17... Re8 {[%clk 0:01:57.3]} 18. Re1
{[%clk 0:01:48.7]} 18... Rc8 {[%clk 0:01:33.2]} 19. e4 {[%clk 0:01:43.4]} 19...
Qc7 {[%clk 0:01:33.4]} 20. Bf4 {[%clk 0:01:35.9]} 20... Qc2+ {[%clk 0:01:33.4]}
21. Kg1 {[%clk 0:01:33.2]} 21... Bb5 {[%clk 0:01:18.4]} 22. Nxb6 {[%clk
0:01:16.9]} 22... axb6 {[%clk 0:01:14.6]} 23. Bxd6 {[%clk 0:01:16.8]} 23... Qa2
{[%clk 0:01:00.9]} 24. Ra1 {[%clk 0:01:12.9]} 24... Qb2 {[%clk 0:01:00.8]} 25.
Rb1 {[%clk 0:01:12.5]} 25... Qa2 {[%clk 0:00:55.6]} 26. Rc1 {[%clk 0:00:59.2]}
26... h5 {[%clk 0:00:46.5]} 27. Qd4 {[%clk 0:00:54.8]} 27... h4 {[%clk
0:00:35.9]} 28. Qxb6 {[%clk 0:00:49]} 28... Ba4 {[%clk 0:00:17.9]} 29. gxh4
{[%clk 0:00:46]} 29... Nh5 {[%clk 0:00:17.2]} 30. Qf2 {[%clk 0:00:42.7]} 30...
Qb3 {[%clk 0:00:16.4]} 31. Bh3 {[%clk 0:00:38.4]} 31... Bb5 {[%clk 0:00:14.7]}
32. Bg4 {[%clk 0:00:28.7]} 32... Nf6 {[%clk 0:00:14.3]} 33. Bf5 {[%clk
0:00:28.1]} 33... g6 {[%clk 0:00:13.2]} 34. Bh3 {[%clk 0:00:20.6]} 34... Rxc1
{[%clk 0:00:12.4]} 35. Rxc1 {[%clk 0:00:18.8]} 35... Nxe4 {[%clk 0:00:12.9]} 36.
fxe4 {[%clk 0:00:17.9]} 36... Qxh3 {[%clk 0:00:13.4]} 37. e5 {[%clk 0:00:16.5]}
37... Bd3 {[%clk 0:00:10.4]} 38. e6 {[%clk 0:00:10.8]} 38... dxe6 {[%clk
0:00:09.8]} 39. dxe6 {[%clk 0:00:10.1]} 39... Qxe6 {[%clk 0:00:10.1]} 40. Bg3
{[%clk 0:00:08.7]} 40... Be4 {[%clk 0:00:09.8]} 41. Re1 {[%clk 0:00:08.2]} 41...
Qd5 {[%clk 0:00:08]} 42. Qf4 {[%clk 0:00:06.3]} 42... Re6 {[%clk 0:00:07.9]} 43.
h5 {[%clk 0:00:05.7]} 43... Bh1 {[%clk 0:00:06.5]} 0-1

[Event "*** SCC Grand Prix: Titled Tuesday Blitz"]
[Site "Chess.com"]
[Date "2020.08.11"]
[Round "5"]
[White "davidkalashian"]
[Black "BJthechessgod"]
[Result "1-0"]
[WhiteElo "2567"]
[BlackElo "2247"]
[TimeControl "180+1"]
[EndTime "10:56:02 PDT"]
[Termination "davidkalashian won on time"]

1. e4 {[%clk 0:03:00.9]} 1... c5 {[%clk 0:02:57.9]} 2. Nc3 {[%clk 0:03:00.1]}
2... Nc6 {[%clk 0:02:56.9]} 3. Nf3 {[%clk 0:02:57.7]} 3... g6 {[%clk 0:02:52.9]}
4. d4 {[%clk 0:02:55.8]} 4... cxd4 {[%clk 0:02:52.1]} 5. Nxd4 {[%clk 0:02:56.7]}
5... Bg7 {[%clk 0:02:49.3]} 6. Be3 {[%clk 0:02:56.9]} 6... Nf6 {[%clk
0:02:49.3]} 7. Bc4 {[%clk 0:02:47.8]} 7... O-O {[%clk 0:02:47.1]} 8. Bb3 {[%clk
0:02:44.9]} 8... d6 {[%clk 0:02:45.9]} 9. f3 {[%clk 0:02:42.7]} 9... Bd7 {[%clk
0:02:42.7]} 10. Qd2 {[%clk 0:02:41.6]} 10... Nxd4 {[%clk 0:02:39.9]} 11. Bxd4
{[%clk 0:02:40.7]} 11... b5 {[%clk 0:02:29.8]} 12. O-O {[%clk 0:02:33.5]} 12...
a5 {[%clk 0:02:26.4]} 13. a4 {[%clk 0:02:32.5]} 13... b4 {[%clk 0:02:22]} 14.
Nd5 {[%clk 0:02:24.7]} 14... Nxd5 {[%clk 0:02:21.6]} 15. exd5 {[%clk 0:02:21.1]}
15... Bxd4+ {[%clk 0:02:15.7]} 16. Qxd4 {[%clk 0:02:22]} 16... Rc8 {[%clk
0:02:16.3]} 17. Rfe1 {[%clk 0:02:16.9]} 17... Re8 {[%clk 0:02:07.9]} 18. Re2
{[%clk 0:02:14.7]} 18... e5 {[%clk 0:02:04.3]} 19. dxe6 {[%clk 0:02:12.1]} 19...
Bxe6 {[%clk 0:02:04.4]} 20. Rae1 {[%clk 0:02:05.1]} 20... Qd7 {[%clk 0:02:02.3]}
21. h4 {[%clk 0:01:49.1]} 21... Bxb3 {[%clk 0:01:55]} 22. cxb3 {[%clk 0:01:50]}
22... Rxe2 {[%clk 0:01:51.5]} 23. Rxe2 {[%clk 0:01:50.9]} 23... Re8 {[%clk
0:01:32.2]} 24. Rd2 {[%clk 0:01:32.3]} 24... Re6 {[%clk 0:01:13.1]} 25. h5
{[%clk 0:01:31.7]} 25... gxh5 {[%clk 0:01:06.3]} 26. Qf4 {[%clk 0:01:20.6]}
26... Rg6 {[%clk 0:01:04]} 27. Rd5 {[%clk 0:01:10.3]} 27... Qh3 {[%clk
0:00:58.2]} 28. Rg5 {[%clk 0:00:56.8]} 28... Qe6 {[%clk 0:00:57.8]} 29. Rxa5
{[%clk 0:00:47.8]} 29... Qxb3 {[%clk 0:00:53.5]} 30. Qd4 {[%clk 0:00:36]} 30...
Qxf3 {[%clk 0:00:41.3]} 31. Qf2 {[%clk 0:00:27.7]} 31... Qd1+ {[%clk 0:00:23]}
32. Kh2 {[%clk 0:00:25.3]} 32... Kg7 {[%clk 0:00:19.5]} 33. Rf5 {[%clk 0:00:23]}
33... Qb3 {[%clk 0:00:18.2]} 34. a5 {[%clk 0:00:19.6]} 34... h4 {[%clk
0:00:08.3]} 35. a6 {[%clk 0:00:15]} 35... h3 {[%clk 0:00:07.4]} 36. Rf3 {[%clk
0:00:11.7]} 36... Qd5 {[%clk 0:00:03.3]} 37. Rxh3 {[%clk 0:00:09.7]} 37... h5
{[%clk 0:00:02.4]} 38. a7 {[%clk 0:00:08]} 38... Qe5+ {[%clk 0:00:02.7]} 39. Rg3
{[%clk 0:00:07.9]} 39... Qd5 {[%clk 0:00:01.4]} 40. Rxg6+ {[%clk 0:00:06.4]}
40... fxg6 {[%clk 0:00:02.3]} 41. Qf3 {[%clk 0:00:04.5]} 41... Qe5+ {[%clk
0:00:02.6]} 42. g3 {[%clk 0:00:04]} 42... Qxb2+ {[%clk 0:00:02.3]} 43. Qg2
{[%clk 0:00:03.4]} 43... Qa3 {[%clk 0:00:01.2]} 44. a8=Q {[%clk 0:00:03.2]} 1-0

[Event "*** SCC Grand Prix: Titled Tuesday Blitz"]
[Site "Chess.com"]
[Date "2020.08.11"]
[Round "5"]
[White "hellokostya"]
[Black "BabyBoss31"]
[Result "1-0"]
[WhiteElo "2387"]
[BlackElo "2210"]
[TimeControl "180+1"]
[EndTime "10:56:02 PDT"]
[Termination "hellokostya won by resignation"]

1. Nf3 {[%clk 0:03:00.9]} 1... d5 {[%clk 0:02:58.3]} 2. e3 {[%clk 0:02:59.6]}
2... c5 {[%clk 0:02:44.8]} 3. c4 {[%clk 0:02:48.2]} 3... e6 {[%clk 0:02:39.3]}
4. b3 {[%clk 0:02:47.4]} 4... Nc6 {[%clk 0:02:34.4]} 5. Bb2 {[%clk 0:02:46.6]}
5... Nf6 {[%clk 0:02:30.4]} 6. cxd5 {[%clk 0:02:46.3]} 6... exd5 {[%clk
0:02:26.2]} 7. Bb5 {[%clk 0:02:40.5]} 7... Bd6 {[%clk 0:02:23.8]} 8. O-O {[%clk
0:02:35.4]} 8... O-O {[%clk 0:02:21.3]} 9. d4 {[%clk 0:02:35]} 9... cxd4 {[%clk
0:02:18.4]} 10. Nxd4 {[%clk 0:02:20.9]} 10... Bd7 {[%clk 0:02:12.8]} 11. Be2
{[%clk 0:02:14.1]} 11... Re8 {[%clk 0:02:06.6]} 12. Nc3 {[%clk 0:02:04.5]} 12...
Rc8 {[%clk 0:02:02.3]} 13. Rc1 {[%clk 0:01:42.4]} 13... Ne5 {[%clk 0:01:50.4]}
14. Bb5 {[%clk 0:01:29.3]} 14... a6 {[%clk 0:01:41.6]} 15. Bxd7 {[%clk
0:01:28.2]} 15... Qxd7 {[%clk 0:01:42.5]} 16. Nce2 {[%clk 0:01:22.9]} 16... Rxc1
{[%clk 0:01:39]} 17. Qxc1 {[%clk 0:01:18.9]} 17... Qg4 {[%clk 0:01:09.6]} 18.
Ng3 {[%clk 0:01:06.3]} 18... Nd3 {[%clk 0:01:01.9]} 19. Qb1 {[%clk 0:00:58.5]}
19... Nxb2 {[%clk 0:01:00.1]} 20. Qxb2 {[%clk 0:00:58.5]} 20... Be5 {[%clk
0:00:45.1]} 21. Rc1 {[%clk 0:00:49.6]} 21... Bxd4 {[%clk 0:00:40.6]} 22. Qxd4
{[%clk 0:00:47.9]} 22... Qxd4 {[%clk 0:00:39]} 23. exd4 {[%clk 0:00:48.8]} 23...
g6 {[%clk 0:00:29.9]} 24. f3 {[%clk 0:00:38.6]} 24... Re7 {[%clk 0:00:27]} 25.
Kf2 {[%clk 0:00:36.8]} 25... h5 {[%clk 0:00:27.2]} 26. Nf1 {[%clk 0:00:36]}
26... Kg7 {[%clk 0:00:26.2]} 27. Ne3 {[%clk 0:00:36.2]} 27... Rd7 {[%clk
0:00:26.2]} 28. Rc8 {[%clk 0:00:35.6]} 28... Ng8 {[%clk 0:00:23.5]} 29. g4
{[%clk 0:00:34]} 29... hxg4 {[%clk 0:00:23.3]} 30. fxg4 {[%clk 0:00:33.7]} 30...
Nf6 {[%clk 0:00:23.2]} 31. Kf3 {[%clk 0:00:31.3]} 31... Ne4 {[%clk 0:00:20.7]}
32. h4 {[%clk 0:00:27.9]} 32... Nd2+ {[%clk 0:00:18.6]} 33. Ke2 {[%clk
0:00:27.4]} 33... Ne4 {[%clk 0:00:18.4]} 34. Kd3 {[%clk 0:00:26.4]} 34... Nf2+
{[%clk 0:00:17.6]} 35. Ke2 {[%clk 0:00:24.2]} 35... Ne4 {[%clk 0:00:17.7]} 36.
Kf1 {[%clk 0:00:23.7]} 36... Nd2+ {[%clk 0:00:17.4]} 37. Kf2 {[%clk 0:00:23.3]}
37... Ne4+ {[%clk 0:00:17.6]} 38. Kg2 {[%clk 0:00:23.6]} 38... Nf6 {[%clk
0:00:15.7]} 39. Rc5 {[%clk 0:00:22.2]} 39... Re7 {[%clk 0:00:14.6]} 40. Kf3
{[%clk 0:00:20.9]} 40... Ne4 {[%clk 0:00:10.2]} 41. Rxd5 {[%clk 0:00:18.7]}
41... Nc3 {[%clk 0:00:09]} 42. Re5 {[%clk 0:00:17.8]} 42... Rd7 {[%clk
0:00:08.2]} 43. d5 {[%clk 0:00:15.7]} 43... Nxa2 {[%clk 0:00:08.1]} 44. Ke4
{[%clk 0:00:12.8]} 44... Nc3+ {[%clk 0:00:08.3]} 45. Kd4 {[%clk 0:00:12.9]}
45... Nb5+ {[%clk 0:00:08.9]} 46. Kc5 {[%clk 0:00:12.6]} 46... Nc3 {[%clk
0:00:08.7]} 47. d6 {[%clk 0:00:11.4]} 47... f6 {[%clk 0:00:08.1]} 48. Re7+
{[%clk 0:00:10.4]} 48... Rxe7 {[%clk 0:00:07.7]} 49. dxe7 {[%clk 0:00:11.3]}
49... Kf7 {[%clk 0:00:07.9]} 50. Kd6 {[%clk 0:00:11.4]} 50... Ke8 {[%clk
0:00:08.3]} 51. Ke6 {[%clk 0:00:09.5]} 51... Nb5 {[%clk 0:00:08.7]} 52. Nd5
{[%clk 0:00:07.9]} 52... Nd4+ {[%clk 0:00:08.8]} 53. Kxf6 {[%clk 0:00:07.8]}
53... Nc6 {[%clk 0:00:07.9]} 54. Nc7+ {[%clk 0:00:07.4]} 1-0

[Event "*** SCC Grand Prix: Titled Tuesday Blitz"]
[Site "Chess.com"]
[Date "2020.08.11"]
[Round "5"]
[White "AustrianFalcon"]
[Black "VladaSviridova"]
[Result "1-0"]
[WhiteElo "2470"]
[BlackElo "2240"]
[TimeControl "180+1"]
[EndTime "10:56:05 PDT"]
[Termination "AustrianFalcon won by resignation"]

1. e4 {[%clk 0:03:00.9]} 1... e6 {[%clk 0:02:59.9]} 2. d4 {[%clk 0:03:00.1]}
2... d5 {[%clk 0:02:59.8]} 3. Nc3 {[%clk 0:03:00.3]} 3... Bb4 {[%clk 0:02:59.1]}
4. e5 {[%clk 0:02:59.1]} 4... c5 {[%clk 0:02:59.1]} 5. a3 {[%clk 0:02:59.1]}
5... Bxc3+ {[%clk 0:02:59.4]} 6. bxc3 {[%clk 0:03:00]} 6... Ne7 {[%clk
0:02:59.8]} 7. Qg4 {[%clk 0:02:58.1]} 7... O-O {[%clk 0:02:59.6]} 8. Bd3 {[%clk
0:02:54.8]} 8... Nbc6 {[%clk 0:02:52.6]} 9. Bg5 {[%clk 0:02:53.5]} 9... Qa5
{[%clk 0:02:45.7]} 10. Ne2 {[%clk 0:02:32.2]} 10... Ng6 {[%clk 0:02:23.2]} 11.
O-O {[%clk 0:02:26.8]} 11... Qa4 {[%clk 0:02:06.4]} 12. h3 {[%clk 0:02:02.3]}
12... c4 {[%clk 0:01:51.6]} 13. Bxg6 {[%clk 0:02:01.5]} 13... fxg6 {[%clk
0:01:51.4]} 14. Ra2 {[%clk 0:01:48.9]} 14... Bd7 {[%clk 0:01:46.2]} 15. Nf4
{[%clk 0:01:41.3]} 15... Rf5 {[%clk 0:01:33.4]} 16. Ne2 {[%clk 0:01:32]} 16...
Raf8 {[%clk 0:01:31.1]} 17. Ng3 {[%clk 0:01:28.2]} 17... R5f7 {[%clk 0:01:27.1]}
18. Bd2 {[%clk 0:01:24.3]} 18... Ne7 {[%clk 0:01:21.3]} 19. h4 {[%clk
0:01:21.2]} 19... Nf5 {[%clk 0:00:55.3]} 20. h5 {[%clk 0:01:16.3]} 20... Nxg3
{[%clk 0:00:51.6]} 21. hxg6 {[%clk 0:01:16.3]} 21... Nxf1 {[%clk 0:00:46.1]} 22.
gxf7+ {[%clk 0:01:16.2]} 22... Rxf7 {[%clk 0:00:46.4]} 23. Kxf1 {[%clk
0:01:16.9]} 23... Qa5 {[%clk 0:00:44.7]} 24. Kg1 {[%clk 0:01:04.9]} 24... Qd8
{[%clk 0:00:39.6]} 25. Rb2 {[%clk 0:01:03.7]} 25... b5 {[%clk 0:00:37.1]} 26.
Rb1 {[%clk 0:00:59.2]} 26... Qf8 {[%clk 0:00:36.9]} 27. f4 {[%clk 0:00:45.4]}
27... Qxa3 {[%clk 0:00:35.8]} 28. Qd1 {[%clk 0:00:45.3]} 28... Qe7 {[%clk
0:00:33.7]} 29. Ra1 {[%clk 0:00:43.1]} 29... Bc6 {[%clk 0:00:30.2]} 30. Ra6
{[%clk 0:00:40.6]} 30... Qb7 {[%clk 0:00:30]} 31. Qa1 {[%clk 0:00:39.5]} 31...
h6 {[%clk 0:00:20.3]} 32. Qa5 {[%clk 0:00:32.2]} 32... Kh7 {[%clk 0:00:20]} 33.
g3 {[%clk 0:00:30.8]} 33... h5 {[%clk 0:00:18.5]} 34. Kh2 {[%clk 0:00:26.1]}
34... Qc7 {[%clk 0:00:17.7]} 35. Qa3 {[%clk 0:00:20.2]} 35... Qe7 {[%clk
0:00:17.1]} 36. Qxe7 {[%clk 0:00:19.6]} 36... Rxe7 {[%clk 0:00:16.9]} 37. Rxc6
{[%clk 0:00:20]} 37... a5 {[%clk 0:00:15.5]} 38. Bc1 {[%clk 0:00:20]} 38... a4
{[%clk 0:00:15.1]} 39. Ba3 {[%clk 0:00:19.6]} 39... Re8 {[%clk 0:00:15.1]} 40.
Kh3 {[%clk 0:00:17.6]} 40... Kg6 {[%clk 0:00:15]} 41. g4 {[%clk 0:00:17.8]}
41... hxg4+ {[%clk 0:00:15.1]} 42. Kxg4 {[%clk 0:00:18.7]} 42... Kf7 {[%clk
0:00:15]} 43. f5 {[%clk 0:00:18.8]} 43... exf5+ {[%clk 0:00:14.9]} 44. Kxf5
{[%clk 0:00:19.7]} 44... Rh8 {[%clk 0:00:14.7]} 45. Rc7+ {[%clk 0:00:19.6]}
45... Kg8 {[%clk 0:00:13.2]} 46. Rc8+ {[%clk 0:00:19.2]} 46... Kh7 {[%clk
0:00:13.4]} 47. Rxh8+ {[%clk 0:00:19.7]} 47... Kxh8 {[%clk 0:00:13.8]} 48. e6
{[%clk 0:00:20]} 48... Kg8 {[%clk 0:00:13.7]} 49. Kg6 {[%clk 0:00:19.5]} 49...
b4 {[%clk 0:00:12.7]} 50. e7 {[%clk 0:00:20.4]} 1-0

[Event "*** SCC Grand Prix: Titled Tuesday Blitz"]
[Site "Chess.com"]
[Date "2020.08.11"]
[Round "5"]
[White "MuhittinBuker"]
[Black "GMJustin"]
[Result "0-1"]
[WhiteElo "1989"]
[BlackElo "2284"]
[TimeControl "180+1"]
[EndTime "10:56:05 PDT"]
[Termination "GMJustin won by resignation"]

1. d4 {[%clk 0:03:00.9]} 1... d5 {[%clk 0:02:44.7]} 2. c4 {[%clk 0:02:59.7]}
2... dxc4 {[%clk 0:02:44.6]} 3. Nf3 {[%clk 0:02:58.6]} 3... a6 {[%clk
0:02:43.8]} 4. a4 {[%clk 0:02:58]} 4... Nc6 {[%clk 0:02:34.5]} 5. e3 {[%clk
0:02:57.5]} 5... Na5 {[%clk 0:02:28.8]} 6. Nbd2 {[%clk 0:02:57.1]} 6... Be6
{[%clk 0:02:17.1]} 7. Qc2 {[%clk 0:02:48.3]} 7... b5 {[%clk 0:01:56.9]} 8. Ng5
{[%clk 0:02:44.1]} 8... Bd5 {[%clk 0:01:53.4]} 9. Nxh7 {[%clk 0:02:42.1]} 9...
Nb3 {[%clk 0:01:35.8]} 10. Ra3 {[%clk 0:02:20.3]} 10... Nxc1 {[%clk 0:01:15.5]}
11. Nxf8 {[%clk 0:02:19.8]} 11... Nd3+ {[%clk 0:01:13.2]} 12. Bxd3 {[%clk
0:02:07.3]} 12... cxd3 {[%clk 0:01:13.4]} 13. Qc5 {[%clk 0:01:57.3]} 13... Kxf8
{[%clk 0:01:08.7]} 14. e4 {[%clk 0:01:55.8]} 14... Bb7 {[%clk 0:01:04]} 15. Rxd3
{[%clk 0:01:54.3]} 15... Nf6 {[%clk 0:01:00.2]} 16. d5 {[%clk 0:01:50.9]} 16...
Qd6 {[%clk 0:00:53.4]} 17. Qxd6 {[%clk 0:01:38.1]} 17... cxd6 {[%clk 0:00:38.7]}
18. O-O {[%clk 0:01:37.6]} 18... bxa4 {[%clk 0:00:33.2]} 19. Rc1 {[%clk
0:01:36.4]} 19... Nd7 {[%clk 0:00:26.8]} 20. Rc7 {[%clk 0:01:30.7]} 20... Nc5
{[%clk 0:00:26.5]} 21. Rc3 {[%clk 0:01:30.3]} 21... Rb8 {[%clk 0:00:25]} 22. f3
{[%clk 0:01:09.8]} 22... Ke8 {[%clk 0:00:23.2]} 23. e5 {[%clk 0:00:45.3]} 23...
Bxd5 {[%clk 0:00:20.1]} 24. exd6 {[%clk 0:00:44.6]} 24... exd6 {[%clk
0:00:20.4]} 25. Nc4 {[%clk 0:00:38.2]} 25... Bxc4 {[%clk 0:00:19.8]} 26. Rxc4
{[%clk 0:00:38]} 26... Rh5 {[%clk 0:00:18.7]} 27. Rf4 {[%clk 0:00:37.2]} 27...
Rb7 {[%clk 0:00:14.3]} 28. Rfxf7 {[%clk 0:00:30.1]} 28... Rxc7 {[%clk
0:00:14.1]} 29. Rxc7 {[%clk 0:00:30]} 29... Rd5 {[%clk 0:00:14.2]} 30. Rxg7
{[%clk 0:00:27.2]} 30... Rd2 {[%clk 0:00:13.7]} 31. h4 {[%clk 0:00:26.9]} 31...
Rxb2 {[%clk 0:00:13.2]} 32. h5 {[%clk 0:00:27.2]} 32... Kf8 {[%clk 0:00:11.4]}
33. Rg4 {[%clk 0:00:19.2]} 33... a3 {[%clk 0:00:09.5]} 34. h6 {[%clk 0:00:15.6]}
34... a2 {[%clk 0:00:09.6]} 35. h7 {[%clk 0:00:15.1]} 35... a1=Q+ {[%clk
0:00:08.6]} 36. Kh2 {[%clk 0:00:15.3]} 36... Rb8 {[%clk 0:00:07.3]} 37. Rg8+
{[%clk 0:00:10.8]} 37... Kf7 {[%clk 0:00:07.2]} 38. Rxb8 {[%clk 0:00:10.6]}
38... Qe5+ {[%clk 0:00:06.3]} 39. Kg1 {[%clk 0:00:08.1]} 39... Qe1+ {[%clk
0:00:06.1]} 40. Kh2 {[%clk 0:00:07]} 40... Qh4+ {[%clk 0:00:06.8]} 41. Kg1
{[%clk 0:00:07.2]} 41... Qxh7 {[%clk 0:00:07.4]} 0-1